[Event "Titled Tuesday Blitz June 22 2021"]
[White "Shahade, Gregory"]
[Black "Terry, Renato"]
[WhiteFideId "2009064"]
[BlackFideId "3803457"]
[WhiteElo "2719"]
[BlackElo "2581"]
[Result "1-0"]
[Round "11"]
[TimeControl "180+1"]
[Date "2021.06.22"]
[WhiteClock "0:00:10"]
[BlackClock "0:00:01"]

1. e4 {[%clk 0:03:00]}  c6 {[%clk 0:02:56]} 2. Nc3 {[%clk 0:03:00]}  d5 {[%clk 0:02:56]} 3. Nf3 {[%clk 0:03:00]}  g6 {[%clk 0:02:56]} 4. d4 {[%clk 0:02:57]}  Bg7 {[%clk 0:02:56]} 5. h3 {[%clk 0:02:57]}  Nh6 {[%clk 0:02:55]} 6. Bd3 {[%clk 0:02:52]}  f6 {[%clk 0:02:55]} 7. O-O {[%clk 0:02:48]}  Nf7 {[%clk 0:02:55]} 8. Re1 {[%clk 0:02:36]}  O-O {[%clk 0:02:54]} 9. exd5 {[%clk 0:02:25]}  cxd5 {[%clk 0:02:54]} 10. Bf4 {[%clk 0:02:25]}  Nc6 {[%clk 0:02:53]} 11. Bh2 {[%clk 0:02:23]}  e5 {[%clk 0:02:32]} 12. Bf1 {[%clk 0:01:43]}  e4 {[%clk 0:02:31]} 13. Nd2 {[%clk 0:01:42]}  f5 {[%clk 0:02:21]} 14. Nb3 {[%clk 0:01:40]}  g5 {[%clk 0:02:18]} 15. f3 {[%clk 0:01:25]}  Re8 {[%clk 0:02:09]} 16. Kh1 {[%clk 0:01:20]}  a6 {[%clk 0:02:03]} 17. fxe4 {[%clk 0:01:17]}  dxe4 {[%clk 0:02:01]} 18. Bc4 {[%clk 0:01:16]}  Ne7 {[%clk 0:01:03]} 19. Qh5 {[%clk 0:01:05]}  Ng6 {[%clk 0:01:03]} 20. Be5 {[%clk 0:00:53]}  Be6 {[%clk 0:00:56]} 21. Bxe6 {[%clk 0:00:39]}  Rxe6 {[%clk 0:00:56]} 22. Bxg7 {[%clk 0:00:40]}  Kxg7 {[%clk 0:00:57]} 23. d5 {[%clk 0:00:39]}  Nf4 {[%clk 0:00:36]} 24. Qd1 {[%clk 0:00:38]}  Rh6 {[%clk 0:00:37]} 25. Nd4 {[%clk 0:00:37]}  Qf6 {[%clk 0:00:37]} 26. Rf1 {[%clk 0:00:34]}  Re8 {[%clk 0:00:35]} 27. Nce2 {[%clk 0:00:30]}  Rh4 {[%clk 0:00:21]} 28. Nxf4 {[%clk 0:00:27]}  gxf4 {[%clk 0:00:19]} 29. Ne6+ {[%clk 0:00:27]}  Rxe6 {[%clk 0:00:19]} 30. dxe6 {[%clk 0:00:26]}  Qxe6 {[%clk 0:00:20]} 31. Qd4+ {[%clk 0:00:26]}  Kg6 {[%clk 0:00:09]} 32. Rad1 {[%clk 0:00:25]}  f3 {[%clk 0:00:09]} 33. Rxf3 {[%clk 0:00:21]}  exf3 {[%clk 0:00:05]} 34. Qxh4 {[%clk 0:00:21]}  fxg2+ {[%clk 0:00:06]} 35. Kh2 {[%clk 0:00:22]}  Ng5 {[%clk 0:00:04]} 36. Qg3 {[%clk 0:00:19]}  f4 {[%clk 0:00:04]} 37. Qxg2 {[%clk 0:00:13]}  Qe5 {[%clk 0:00:03]} 38. Rd5 {[%clk 0:00:10]}  Qf6 {[%clk 0:00:01]} 39. h4 {[%clk 0:00:09]}  f3 {[%clk 0:00:01]} 40. Qxg5+ {[%clk 0:00:09]}  Qxg5 {[%clk 0:00:01]} 41. Rxg5+ {[%clk 0:00:10]} 1-0


[Site "https://www.chess.com"]

[Event "Titled Tuesday Blitz June 22 2021"]
[White "Shevtchenko, Olesya"]
[Black "Weetik, Vjacheslav"]
[WhiteFideId "24131890"]
[BlackFideId "4153472"]
[WhiteElo "2003"]
[BlackElo "2469"]
[Result "0-1"]
[Round "11"]
[TimeControl "180+1"]
[Date "2021.06.22"]
[WhiteClock "0:00:21"]
[BlackClock "0:00:07"]

1. e4 {[%clk 0:02:33]}  d5 {[%clk 0:02:59]} 2. exd5 {[%clk 0:02:33]}  Qxd5 {[%clk 0:03:00]} 3. Nc3 {[%clk 0:02:33]}  Qd6 {[%clk 0:03:00]} 4. d4 {[%clk 0:02:34]}  Nf6 {[%clk 0:03:01]} 5. Nf3 {[%clk 0:02:31]}  c6 {[%clk 0:03:01]} 6. h3 {[%clk 0:02:30]}  g6 {[%clk 0:02:55]} 7. Bd3 {[%clk 0:02:27]}  Bg7 {[%clk 0:02:54]} 8. Ne4 {[%clk 0:02:25]}  Nxe4 {[%clk 0:02:51]} 9. Bxe4 {[%clk 0:02:26]}  Nd7 {[%clk 0:02:49]} 10. c3 {[%clk 0:02:24]}  O-O {[%clk 0:02:43]} 11. O-O {[%clk 0:02:23]}  c5 {[%clk 0:02:42]} 12. dxc5 {[%clk 0:02:20]}  Qxc5 {[%clk 0:02:34]} 13. Be3 {[%clk 0:02:19]}  Qc7 {[%clk 0:02:33]} 14. Qb3 {[%clk 0:02:07]}  Nf6 {[%clk 0:02:10]} 15. Bd3 {[%clk 0:01:55]}  b6 {[%clk 0:02:08]} 16. Qc4 {[%clk 0:01:47]}  Qb7 {[%clk 0:01:57]} 17. Ng5 {[%clk 0:01:39]}  Bd7 {[%clk 0:01:37]} 18. Qa6 {[%clk 0:00:55]}  Qc7 {[%clk 0:01:29]} 19. Qc4 {[%clk 0:00:53]}  Bc6 {[%clk 0:01:24]} 20. Rfd1 {[%clk 0:00:42]}  Qb7 {[%clk 0:01:17]} 21. Bf1 {[%clk 0:00:41]}  h6 {[%clk 0:00:51]} 22. Nf3 {[%clk 0:00:40]}  Bxf3 {[%clk 0:00:41]} 23. gxf3 {[%clk 0:00:41]}  Rad8 {[%clk 0:00:34]} 24. Bg2 {[%clk 0:00:36]}  e6 {[%clk 0:00:29]} 25. Qh4 {[%clk 0:00:31]}  g5 {[%clk 0:00:28]} 26. Qg3 {[%clk 0:00:28]}  Qe7 {[%clk 0:00:23]} 27. f4 {[%clk 0:00:18]}  Nh5 {[%clk 0:00:20]} 28. Qg4 {[%clk 0:00:18]}  Nxf4 {[%clk 0:00:20]} 29. Bxf4 {[%clk 0:00:18]}  gxf4 {[%clk 0:00:20]} 30. Qxf4 {[%clk 0:00:19]}  Qc5 {[%clk 0:00:17]} 31. Qf3 {[%clk 0:00:17]}  Kh8 {[%clk 0:00:15]} 32. Rxd8 {[%clk 0:00:17]}  Rxd8 {[%clk 0:00:15]} 33. Rd1 {[%clk 0:00:18]}  Rxd1+ {[%clk 0:00:14]} 34. Qxd1 {[%clk 0:00:19]}  Be5 {[%clk 0:00:12]} 35. Qd8+ {[%clk 0:00:18]}  Kg7 {[%clk 0:00:12]} 36. Qd3 {[%clk 0:00:17]}  Qe7 {[%clk 0:00:07]} 37. Qe3 {[%clk 0:00:16]}  Qf6 {[%clk 0:00:07]} 38. Qf3 {[%clk 0:00:15]}  Qg5 {[%clk 0:00:07]} 39. Qg4 {[%clk 0:00:16]}  f5 {[%clk 0:00:07]} 40. Qxg5+ {[%clk 0:00:15]}  hxg5 {[%clk 0:00:08]} 41. f3 {[%clk 0:00:15]}  Bf4 {[%clk 0:00:08]} 42. Kf1 {[%clk 0:00:15]}  Bc1 {[%clk 0:00:08]} 43. b3 {[%clk 0:00:15]}  Bb2 {[%clk 0:00:09]} 44. c4 {[%clk 0:00:15]}  Kf6 {[%clk 0:00:09]} 45. Ke2 {[%clk 0:00:15]}  Ke5 {[%clk 0:00:10]} 46. Ke3 {[%clk 0:00:15]}  Bc1+ {[%clk 0:00:10]} 47. Ke2 {[%clk 0:00:15]}  Kd4 {[%clk 0:00:10]} 48. Kd1 {[%clk 0:00:14]}  Bf4 {[%clk 0:00:10]} 49. Ke2 {[%clk 0:00:13]}  Kc3 {[%clk 0:00:10]} 50. Bf1 {[%clk 0:00:13]}  Kb2 {[%clk 0:00:10]} 51. Kd3 {[%clk 0:00:13]}  Kxa2 {[%clk 0:00:10]} 52. b4 {[%clk 0:00:13]}  a5 {[%clk 0:00:08]} 53. c5 {[%clk 0:00:12]}  axb4 {[%clk 0:00:07]} 54. cxb6 {[%clk 0:00:11]}  b3 {[%clk 0:00:07]} 55. Kc3 {[%clk 0:00:11]}  b2 {[%clk 0:00:08]} 56. Bc4+ {[%clk 0:00:11]}  Ka1 {[%clk 0:00:08]} 57. Bd3 {[%clk 0:00:12]}  b1=Q {[%clk 0:00:08]} 58. Bxb1 {[%clk 0:00:12]}  Kxb1 {[%clk 0:00:09]} 59. Kc4 {[%clk 0:00:12]}  Kc2 {[%clk 0:00:08]} 60. Kc5 {[%clk 0:00:13]}  Kd3 {[%clk 0:00:07]} 61. Kc6 {[%clk 0:00:13]}  Ke3 {[%clk 0:00:07]} 62. h4 {[%clk 0:00:14]}  gxh4 {[%clk 0:00:07]} 63. Kd7 {[%clk 0:00:14]}  h3 {[%clk 0:00:07]} 64. Kxe6 {[%clk 0:00:15]}  h2 {[%clk 0:00:07]} 65. b7 {[%clk 0:00:15]}  Bb8 {[%clk 0:00:07]} 66. f4 {[%clk 0:00:15]}  h1=Q {[%clk 0:00:08]} 67. Kxf5 {[%clk 0:00:16]}  Qxb7 {[%clk 0:00:08]} 68. Ke6 {[%clk 0:00:17]}  Qe4+ {[%clk 0:00:07]} 69. Kf7 {[%clk 0:00:17]}  Bxf4 {[%clk 0:00:06]} 70. Kf6 {[%clk 0:00:17]}  Qe5+ {[%clk 0:00:06]} 71. Kg6 {[%clk 0:00:18]}  Qg5+ {[%clk 0:00:06]} 72. Kf7 {[%clk 0:00:18]}  Qh6 {[%clk 0:00:06]} 73. Ke7 {[%clk 0:00:18]}  Be5 {[%clk 0:00:07]} 74. Kd7 {[%clk 0:00:19]}  Qd6+ {[%clk 0:00:07]} 75. Ke8 {[%clk 0:00:20]}  Qc7 {[%clk 0:00:07]} 76. Kf8 {[%clk 0:00:20]}  Bf6 {[%clk 0:00:07]} 77. Kg8 {[%clk 0:00:21]}  Qg7# {[%clk 0:00:07]} 0-1


[Site "https://www.chess.com"]

[Event "Titled Tuesday Blitz June 22 2021"]
[White "Shimelkov, Vasiliy"]
[Black "Janaszak, Dawid"]
[WhiteFideId "13701630"]
[BlackFideId "1119206"]
[WhiteElo "2073"]
[BlackElo "2332"]
[Result "1-0"]
[Round "11"]
[TimeControl "180+1"]
[Date "2021.06.22"]
[WhiteClock "0:00:47"]
[BlackClock "0:00:09"]

1. d4 {[%clk 0:03:00]}  Nf6 {[%clk 0:02:57]} 2. c4 {[%clk 0:03:01]}  e6 {[%clk 0:02:56]} 3. Nf3 {[%clk 0:02:59]}  b6 {[%clk 0:02:55]} 4. g3 {[%clk 0:02:58]}  Bb7 {[%clk 0:02:55]} 5. Bg2 {[%clk 0:02:58]}  a5 {[%clk 0:02:55]} 6. O-O {[%clk 0:02:56]}  Be7 {[%clk 0:02:55]} 7. Qc2 {[%clk 0:02:54]}  O-O {[%clk 0:02:51]} 8. Nc3 {[%clk 0:02:54]}  Na6 {[%clk 0:02:48]} 9. e4 {[%clk 0:02:52]}  Nb4 {[%clk 0:02:42]} 10. Qb1 {[%clk 0:02:50]}  d6 {[%clk 0:02:42]} 11. a3 {[%clk 0:02:47]}  Nc6 {[%clk 0:02:42]} 12. Rd1 {[%clk 0:02:46]}  Qe8 {[%clk 0:02:39]} 13. b3 {[%clk 0:02:38]}  e5 {[%clk 0:02:39]} 14. d5 {[%clk 0:02:36]}  Nb8 {[%clk 0:02:36]} 15. Bb2 {[%clk 0:02:30]}  Na6 {[%clk 0:02:34]} 16. Nh4 {[%clk 0:02:26]}  g6 {[%clk 0:02:32]} 17. Bc1 {[%clk 0:02:22]}  Nh5 {[%clk 0:02:31]} 18. Nf3 {[%clk 0:02:19]}  f5 {[%clk 0:02:27]} 19. Bh6 {[%clk 0:02:16]}  Rf7 {[%clk 0:02:20]} 20. b4 {[%clk 0:02:11]}  Bc8 {[%clk 0:02:06]} 21. Qb3 {[%clk 0:02:05]}  f4 {[%clk 0:02:03]} 22. Na4 {[%clk 0:02:00]}  Bd7 {[%clk 0:02:01]} 23. b5 {[%clk 0:01:57]}  Nc5 {[%clk 0:01:49]} 24. Nxc5 {[%clk 0:01:57]}  bxc5 {[%clk 0:01:49]} 25. a4 {[%clk 0:01:54]}  Bg4 {[%clk 0:01:28]} 26. h3 {[%clk 0:01:50]}  Bxf3 {[%clk 0:01:22]} 27. Bxf3 {[%clk 0:01:49]}  fxg3 {[%clk 0:01:22]} 28. fxg3 {[%clk 0:01:41]}  Bf8 {[%clk 0:01:17]} 29. Bxf8 {[%clk 0:01:35]}  Qxf8 {[%clk 0:01:18]} 30. Bg4 {[%clk 0:01:33]}  Ng7 {[%clk 0:01:14]} 31. Rf1 {[%clk 0:01:30]}  h5 {[%clk 0:01:14]} 32. Be2 {[%clk 0:01:27]}  Qe7 {[%clk 0:01:07]} 33. Rxf7 {[%clk 0:01:25]}  Kxf7 {[%clk 0:01:08]} 34. Rf1+ {[%clk 0:01:24]}  Kg8 {[%clk 0:01:07]} 35. Qe3 {[%clk 0:01:21]}  Rf8 {[%clk 0:00:59]} 36. Qd2 {[%clk 0:01:21]}  Ra8 {[%clk 0:00:54]} 37. Qh6 {[%clk 0:01:18]}  Rf8 {[%clk 0:00:42]} 38. Rxf8+ {[%clk 0:01:15]}  Kxf8 {[%clk 0:00:43]} 39. Qxg6 {[%clk 0:01:11]}  Qf7 {[%clk 0:00:32]} 40. Qg5 {[%clk 0:01:10]}  Qe7 {[%clk 0:00:30]} 41. Qh6 {[%clk 0:01:08]}  Ke8 {[%clk 0:00:19]} 42. Bxh5+ {[%clk 0:01:05]}  Nxh5 {[%clk 0:00:18]} 43. Qxh5+ {[%clk 0:01:04]}  Kd7 {[%clk 0:00:18]} 44. Qf5+ {[%clk 0:01:02]}  Kd8 {[%clk 0:00:16]} 45. h4 {[%clk 0:01:00]}  Qe8 {[%clk 0:00:12]} 46. h5 {[%clk 0:00:56]}  Qg8 {[%clk 0:00:12]} 47. Kg2 {[%clk 0:00:53]}  Qg7 {[%clk 0:00:11]} 48. Kf3 {[%clk 0:00:51]}  Qh6 {[%clk 0:00:10]} 49. Kg4 {[%clk 0:00:48]}  Qc1 {[%clk 0:00:09]} 50. Qg5+ {[%clk 0:00:47]} 1-0


[Site "https://www.chess.com"]

[Event "Titled Tuesday Blitz June 22 2021"]
[White "Shyaamnikhil P"]
[Black "Rorrer, Grayson"]
[WhiteFideId "5024218"]
[BlackFideId "30944996"]
[WhiteElo "2300"]
[BlackElo "2546"]
[Result "1-0"]
[Round "11"]
[TimeControl "180+1"]
[Date "2021.06.22"]
[WhiteClock "0:00:33"]
[BlackClock "0:00:01"]

1. e3 {[%clk 0:03:00]}  Nf6 {[%clk 0:02:55]} 2. g4 {[%clk 0:03:00]}  d5 {[%clk 0:02:50]} 3. g5 {[%clk 0:02:59]}  Ne4 {[%clk 0:02:50]} 4. h4 {[%clk 0:02:57]}  h5 {[%clk 0:02:46]} 5. c4 {[%clk 0:02:54]}  c6 {[%clk 0:02:44]} 6. d3 {[%clk 0:02:54]}  Nc5 {[%clk 0:02:41]} 7. d4 {[%clk 0:02:42]}  Ne4 {[%clk 0:02:37]} 8. Nc3 {[%clk 0:02:41]}  Bf5 {[%clk 0:02:34]} 9. Qb3 {[%clk 0:02:38]}  Qb6 {[%clk 0:02:25]} 10. cxd5 {[%clk 0:02:34]}  Nxc3 {[%clk 0:02:16]} 11. bxc3 {[%clk 0:02:29]}  Be4 {[%clk 0:02:09]} 12. f3 {[%clk 0:02:25]}  Bxd5 {[%clk 0:02:07]} 13. c4 {[%clk 0:02:25]}  Be6 {[%clk 0:02:08]} 14. Ne2 {[%clk 0:02:20]}  Nd7 {[%clk 0:02:06]} 15. Nf4 {[%clk 0:02:19]}  Bf5 {[%clk 0:02:06]} 16. c5 {[%clk 0:02:03]}  Qxb3 {[%clk 0:01:59]} 17. axb3 {[%clk 0:02:04]}  e5 {[%clk 0:02:00]} 18. e4 {[%clk 0:01:55]}  Bh7 {[%clk 0:01:55]} 19. Nd3 {[%clk 0:01:43]}  exd4 {[%clk 0:01:53]} 20. b4 {[%clk 0:01:44]}  a5 {[%clk 0:01:38]} 21. Bb2 {[%clk 0:01:40]}  Be7 {[%clk 0:01:28]} 22. Bxd4 {[%clk 0:01:34]}  O-O {[%clk 0:01:28]} 23. Rxa5 {[%clk 0:01:34]}  Rxa5 {[%clk 0:01:27]} 24. bxa5 {[%clk 0:01:34]}  Ra8 {[%clk 0:01:27]} 25. Nf4 {[%clk 0:01:24]}  Rxa5 {[%clk 0:01:17]} 26. Nxh5 {[%clk 0:01:23]}  Bxc5 {[%clk 0:01:07]} 27. Bxg7 {[%clk 0:01:22]}  Bg6 {[%clk 0:01:08]} 28. Nf6+ {[%clk 0:01:21]}  Nxf6 {[%clk 0:00:50]} 29. Bxf6 {[%clk 0:01:21]}  Bh5 {[%clk 0:00:49]} 30. Be2 {[%clk 0:01:16]}  Ra2 {[%clk 0:00:45]} 31. g6 {[%clk 0:01:03]}  b5 {[%clk 0:00:20]} 32. g7 {[%clk 0:00:50]}  Ba3 {[%clk 0:00:19]} 33. Rg1 {[%clk 0:00:43]}  Bb2 {[%clk 0:00:14]} 34. Bxb2 {[%clk 0:00:40]}  Rxb2 {[%clk 0:00:15]} 35. Rg5 {[%clk 0:00:39]}  Bg6 {[%clk 0:00:13]} 36. h5 {[%clk 0:00:39]}  Bh7 {[%clk 0:00:12]} 37. h6 {[%clk 0:00:40]}  f6 {[%clk 0:00:04]} 38. Rc5 {[%clk 0:00:39]}  Bg6 {[%clk 0:00:02]} 39. Rxc6 {[%clk 0:00:40]}  Bf7 {[%clk 0:00:02]} 40. Rxf6 {[%clk 0:00:33]}  b4 {[%clk 0:00:01]} 41. Rxf7 {[%clk 0:00:33]}  Rxe2+ {[%clk 0:00:01]} 1-0


[Site "https://www.chess.com"]

[Event "Titled Tuesday Blitz June 22 2021"]
[White "Spata, German"]
[Black "Siva Mahadevan"]
[WhiteFideId "113026"]
[BlackFideId "25043153"]
[WhiteElo "2238"]
[BlackElo "2203"]
[Result "0-1"]
[Round "11"]
[TimeControl "180+1"]
[Date "2021.06.22"]
[WhiteClock "0:00:32"]
[BlackClock "0:01:39"]

1. Nf3 {[%clk 0:03:00]}  Nf6 {[%clk 0:02:59]} 2. e3 {[%clk 0:02:56]}  g6 {[%clk 0:02:59]} 3. b4 {[%clk 0:02:46]}  Bg7 {[%clk 0:03:00]} 4. Bb2 {[%clk 0:02:46]}  O-O {[%clk 0:03:01]} 5. Be2 {[%clk 0:02:46]}  d6 {[%clk 0:03:01]} 6. O-O {[%clk 0:02:45]}  e5 {[%clk 0:03:01]} 7. d3 {[%clk 0:02:45]}  a5 {[%clk 0:03:01]} 8. b5 {[%clk 0:02:41]}  a4 {[%clk 0:03:00]} 9. c4 {[%clk 0:02:39]}  Nbd7 {[%clk 0:03:00]} 10. a3 {[%clk 0:02:34]}  Nc5 {[%clk 0:02:59]} 11. Nbd2 {[%clk 0:02:33]}  Re8 {[%clk 0:02:56]} 12. e4 {[%clk 0:02:32]}  Nh5 {[%clk 0:02:53]} 13. g3 {[%clk 0:02:26]}  Bh3 {[%clk 0:02:52]} 14. Re1 {[%clk 0:02:26]}  h6 {[%clk 0:02:44]} 15. Bc3 {[%clk 0:02:11]}  Qd7 {[%clk 0:02:36]} 16. Bb4 {[%clk 0:02:11]}  b6 {[%clk 0:02:35]} 17. Nh4 {[%clk 0:02:05]}  Nf6 {[%clk 0:02:34]} 18. Ng2 {[%clk 0:01:45]}  Ne6 {[%clk 0:02:31]} 19. Bc3 {[%clk 0:01:36]}  Nh7 {[%clk 0:02:29]} 20. Nh4 {[%clk 0:01:35]}  h5 {[%clk 0:02:11]} 21. Nf1 {[%clk 0:01:29]}  Bf6 {[%clk 0:02:08]} 22. Ng2 {[%clk 0:01:25]}  Bg5 {[%clk 0:02:08]} 23. Nfe3 {[%clk 0:01:24]}  Rf8 {[%clk 0:02:01]} 24. Nd5 {[%clk 0:01:19]}  Rae8 {[%clk 0:02:00]} 25. f4 {[%clk 0:01:02]}  Bxg2 {[%clk 0:01:45]} 26. fxg5 {[%clk 0:00:55]}  Bh3 {[%clk 0:01:44]} 27. Bxh5 {[%clk 0:00:43]}  gxh5 {[%clk 0:01:38]} 28. Qxh5 {[%clk 0:00:42]}  Nexg5 {[%clk 0:01:39]} 29. Qxg5+ {[%clk 0:00:39]}  Nxg5 {[%clk 0:01:38]} 30. Nf6+ {[%clk 0:00:39]}  Kg7 {[%clk 0:01:39]} 31. Nxd7 {[%clk 0:00:40]}  Bxd7 {[%clk 0:01:39]} 32. Kf2 {[%clk 0:00:32]}  f5 {[%clk 0:01:39]} 0-1


[Site "https://www.chess.com"]

[Event "Titled Tuesday Blitz June 22 2021"]
[White "Storme, Isak"]
[Black "Jakubowska, Anna"]
[WhiteFideId "1728113"]
[BlackFideId "1121952"]
[WhiteElo "2037"]
[BlackElo "2006"]
[Result "1-0"]
[Round "11"]
[TimeControl "180+1"]
[Date "2021.06.22"]
[WhiteClock "0:01:17"]
[BlackClock "0:01:12"]

1. e4 {[%clk 0:02:56]}  c5 {[%clk 0:02:59]} 2. Nf3 {[%clk 0:02:56]}  e6 {[%clk 0:02:59]} 3. d4 {[%clk 0:02:56]}  cxd4 {[%clk 0:03:00]} 4. Nxd4 {[%clk 0:02:57]}  a6 {[%clk 0:03:00]} 5. Nc3 {[%clk 0:02:57]}  b5 {[%clk 0:03:01]} 6. Bd3 {[%clk 0:02:56]}  d6 {[%clk 0:02:57]} 7. O-O {[%clk 0:02:53]}  Nf6 {[%clk 0:02:57]} 8. Qe2 {[%clk 0:02:52]}  Be7 {[%clk 0:02:56]} 9. f4 {[%clk 0:02:51]}  Bb7 {[%clk 0:02:51]} 10. Kh1 {[%clk 0:02:42]}  O-O {[%clk 0:02:50]} 11. a3 {[%clk 0:02:34]}  Nbd7 {[%clk 0:02:48]} 12. Bd2 {[%clk 0:02:19]}  Nc5 {[%clk 0:02:48]} 13. Rae1 {[%clk 0:02:13]}  Re8 {[%clk 0:02:28]} 14. Nf3 {[%clk 0:02:05]}  d5 {[%clk 0:02:23]} 15. e5 {[%clk 0:02:04]}  Nfe4 {[%clk 0:02:23]} 16. b4 {[%clk 0:01:56]}  Nxc3 {[%clk 0:02:11]} 17. Bxc3 {[%clk 0:01:55]}  Na4 {[%clk 0:02:09]} 18. Bd4 {[%clk 0:01:53]}  Rc8 {[%clk 0:02:08]} 19. f5 {[%clk 0:01:47]}  exf5 {[%clk 0:01:36]} 20. Bxf5 {[%clk 0:01:44]}  Rc4 {[%clk 0:01:37]} 21. e6 {[%clk 0:01:42]}  f6 {[%clk 0:01:36]} 22. Qd3 {[%clk 0:01:37]}  h6 {[%clk 0:01:25]} 23. Bh7+ {[%clk 0:01:17]}  Kh8 {[%clk 0:01:25]} 24. Nh4 {[%clk 0:01:17]}  Rxd4 {[%clk 0:01:19]} 25. Ng6+ {[%clk 0:01:14]}  Kxh7 {[%clk 0:01:19]} 26. Nf8+ {[%clk 0:01:15]}  Kg8 {[%clk 0:01:12]} 27. Qh7+ {[%clk 0:01:16]}  Kxf8 {[%clk 0:01:12]} 28. Qh8# {[%clk 0:01:17]} 1-0


[Site "https://www.chess.com"]

[Event "Titled Tuesday Blitz June 22 2021"]
[White "Stribuk, Artiom"]
[Black "Maximov, Dmitry"]
[WhiteFideId "13515659"]
[BlackFideId "14105659"]
[WhiteElo "2177"]
[BlackElo "2494"]
[Result "1-0"]
[Round "11"]
[TimeControl "180+1"]
[Date "2021.06.22"]
[WhiteClock "0:00:31"]
[BlackClock "0:00:22"]

1. d4 {[%clk 0:03:00]}  Nf6 {[%clk 0:02:59]} 2. c4 {[%clk 0:02:58]}  g6 {[%clk 0:03:00]} 3. Nf3 {[%clk 0:02:54]}  Bg7 {[%clk 0:03:00]} 4. g3 {[%clk 0:02:54]}  O-O {[%clk 0:03:01]} 5. Bg2 {[%clk 0:02:54]}  d6 {[%clk 0:03:02]} 6. O-O {[%clk 0:02:54]}  Nbd7 {[%clk 0:03:02]} 7. Nc3 {[%clk 0:02:53]}  e5 {[%clk 0:03:03]} 8. e4 {[%clk 0:02:54]}  c6 {[%clk 0:03:02]} 9. Re1 {[%clk 0:02:50]}  a5 {[%clk 0:03:01]} 10. h3 {[%clk 0:02:48]}  Re8 {[%clk 0:02:59]} 11. Be3 {[%clk 0:02:34]}  a4 {[%clk 0:02:57]} 12. Qc2 {[%clk 0:02:32]}  Qa5 {[%clk 0:02:55]} 13. a3 {[%clk 0:02:25]}  exd4 {[%clk 0:02:50]} 14. Nxd4 {[%clk 0:02:24]}  Ne5 {[%clk 0:02:44]} 15. Qe2 {[%clk 0:01:54]}  Qa6 {[%clk 0:02:44]} 16. Bf1 {[%clk 0:01:48]}  h5 {[%clk 0:02:42]} 17. f4 {[%clk 0:01:46]}  Ned7 {[%clk 0:02:42]} 18. Bf2 {[%clk 0:01:32]}  Nc5 {[%clk 0:02:40]} 19. Bg2 {[%clk 0:01:25]}  Nfd7 {[%clk 0:02:19]} 20. Rad1 {[%clk 0:01:22]}  Nb6 {[%clk 0:02:12]} 21. Ndb5 {[%clk 0:01:22]}  cxb5 {[%clk 0:02:08]} 22. Rxd6 {[%clk 0:01:17]}  Ncd7 {[%clk 0:01:46]} 23. Nd5 {[%clk 0:01:04]}  bxc4 {[%clk 0:00:54]} 24. Nc7 {[%clk 0:00:54]}  Qa5 {[%clk 0:00:54]} 25. Nxe8 {[%clk 0:00:53]}  Bf8 {[%clk 0:00:52]} 26. Nf6+ {[%clk 0:00:48]}  Kh8 {[%clk 0:00:42]} 27. Bd4 {[%clk 0:00:37]}  Bxd6 {[%clk 0:00:28]} 28. Nxd7+ {[%clk 0:00:36]}  Kg8 {[%clk 0:00:29]} 29. Nxb6 {[%clk 0:00:36]}  Rb8 {[%clk 0:00:28]} 30. Nxc4 {[%clk 0:00:35]}  Qc7 {[%clk 0:00:26]} 31. Nxd6 {[%clk 0:00:35]}  Qxd6 {[%clk 0:00:27]} 32. Be5 {[%clk 0:00:36]}  Qb6+ {[%clk 0:00:27]} 33. Qf2 {[%clk 0:00:36]}  Qxf2+ {[%clk 0:00:25]} 34. Kxf2 {[%clk 0:00:37]}  Ra8 {[%clk 0:00:26]} 35. Rd1 {[%clk 0:00:36]}  Be6 {[%clk 0:00:25]} 36. Bc3 {[%clk 0:00:36]}  Rc8 {[%clk 0:00:23]} 37. Rd6 {[%clk 0:00:36]}  Bb3 {[%clk 0:00:23]} 38. Rb6 {[%clk 0:00:36]}  Rc7 {[%clk 0:00:23]} 39. e5 {[%clk 0:00:37]}  Rd7 {[%clk 0:00:22]} 40. Rxb7 {[%clk 0:00:35]}  Rd1 {[%clk 0:00:21]} 41. Rb8+ {[%clk 0:00:32]}  Kh7 {[%clk 0:00:22]} 42. e6 {[%clk 0:00:32]}  g5 {[%clk 0:00:22]} 43. Be4+ {[%clk 0:00:31]} 1-0


[Site "https://www.chess.com"]

[Event "Titled Tuesday Blitz June 22 2021"]
[White "Tristan, Leonardo"]
[Black "Donchenko, Alexander"]
[WhiteFideId "113816"]
[BlackFideId "24603295"]
[WhiteElo "2404"]
[BlackElo "2553"]
[Result "0-1"]
[Round "11"]
[TimeControl "180+1"]
[Date "2021.06.22"]
[WhiteClock "0:00:09"]
[BlackClock "0:01:37"]

1. d4 {[%clk 0:03:00]}  d5 {[%clk 0:02:59]} 2. Bg5 {[%clk 0:03:00]}  f6 {[%clk 0:02:58]} 3. Bd2 {[%clk 0:03:00]}  e5 {[%clk 0:02:56]} 4. dxe5 {[%clk 0:03:00]}  fxe5 {[%clk 0:02:57]} 5. e4 {[%clk 0:03:01]}  c6 {[%clk 0:02:51]} 6. Qh5+ {[%clk 0:02:59]}  Kd7 {[%clk 0:02:45]} 7. Nf3 {[%clk 0:02:19]}  Bd6 {[%clk 0:02:42]} 8. Nxe5+ {[%clk 0:01:29]}  Bxe5 {[%clk 0:02:39]} 9. Qxe5 {[%clk 0:01:30]}  Nf6 {[%clk 0:02:38]} 10. Nc3 {[%clk 0:01:31]}  Re8 {[%clk 0:02:34]} 11. Qf5+ {[%clk 0:01:26]}  Ke7 {[%clk 0:02:32]} 12. Qg5 {[%clk 0:01:26]}  Kf8 {[%clk 0:02:30]} 13. O-O-O {[%clk 0:01:25]}  d4 {[%clk 0:02:25]} 14. Bc4 {[%clk 0:00:55]}  Nbd7 {[%clk 0:02:13]} 15. Bf4 {[%clk 0:00:50]}  dxc3 {[%clk 0:02:09]} 16. Bd6+ {[%clk 0:00:46]}  Re7 {[%clk 0:02:10]} 17. e5 {[%clk 0:00:47]}  Nd5 {[%clk 0:02:01]} 18. Rd3 {[%clk 0:00:23]}  N7b6 {[%clk 0:01:50]} 19. Rf3+ {[%clk 0:00:11]}  Ke8 {[%clk 0:01:50]} 20. Bd3 {[%clk 0:00:11]}  cxb2+ {[%clk 0:01:47]} 21. Kxb2 {[%clk 0:00:09]}  Na4+ {[%clk 0:01:40]} 22. Ka1 {[%clk 0:00:09]}  Qb6 {[%clk 0:01:37]} 0-1


[Site "https://www.chess.com"]